bitfinex-derivatives/quotes_BTCF0:USTF0_20241217
["timestamp","ask_amount","ask_price","bid_price","bid_amount"]
[1734446166948,0.53218665,107410.0,107400.0,0.56523272]
[1734446166949,8.46e-05,107410.0,107400.0,0.56523272]
[1734446167150,0.17128805,107450.0,107420.0,0.046547]
[1734446167448,0.046543,107440.0,107430.0,0.7483608]
[1734446167654,0.046537,107450.0,107440.0,0.046539]
[1734446167854,0.06519274,107460.0,107450.0,0.046535]
[1734446168052,0.01873531,107460.0,107450.0,0.407335]
[1734446168447,0.046528,107470.0,107460.0,0.046531]
[1734446168654,0.046528,107470.0,107460.0,0.407331]
[1734446169041,0.046528,107470.0,107460.0,0.3608]
[1734446169349,0.04662042,107470.0,107460.0,0.046531]
[1734446169559,0.046531,107460.0,107450.0,0.40744536]
[1734446170145,0.046531,107460.0,107450.0,1.61511751]
[1734446170356,0.046531,107460.0,107450.0,1.56858451]
[1734446170552,0.046531,107460.0,107450.0,0.82011236]
[1734446170753,0.046531,107460.0,107450.0,0.046535]
[1734446170951,0.17136947,107470.0,107440.0,0.82247215]
[1734446171153,0.53208505,107450.0,107440.0,1.01318922]
[1734446171348,0.046539,107440.0,107430.0,0.89254959]
[1734446171543,0.6568391,107440.0,107430.0,0.3414486]
[1734446171749,0.6568391,107440.0,107430.0,0.33272421]
[1734446172049,0.046544,107430.0,107420.0,0.36922421]
[1734446172249,0.046548,107420.0,107410.0,0.00010607]
[1734446172444,0.17141811,107420.0,107410.0,0.00010607]
[1734446172647,0.04666806,107420.0,107410.0,0.00010607]
[1734446173157,0.17141811,107420.0,107410.0,0.00010607]
[1734446173751,0.04666806,107420.0,107410.0,0.00010607]
[1734446174960,0.00012006,107420.0,107410.0,0.36090607]
[1734446175256,0.04654,107440.0,107410.0,0.83220812]
[1734446175459,0.04654,107440.0,107430.0,0.407344]
[1734446176051,0.04654,107440.0,107410.0,0.00010607]
[1734446176052,0.046548,107420.0,107410.0,0.00010607]
[1734446176358,0.17141352,107420.0,107410.0,0.00010607]
[1734446176660,0.04666347,107420.0,107410.0,0.00010607]
[1734446176847,0.04666347,107420.0,107410.0,0.36090607]
[1734446177449,0.00011547,107420.0,107410.0,0.40745807]
[1734446177650,0.407331,107460.0,107410.0,0.40745807]
[1734446177651,0.046532,107460.0,107450.0,0.046534]
[1734446177953,0.06550047,107460.0,107450.0,0.3608]
[1734446178256,0.046527,107470.0,107450.0,1.0208]
[1734446178462,0.093058,107470.0,107460.0,0.407329]
[1734446178649,0.09317379,107470.0,107460.0,0.3608]
[1734446178851,0.04664279,107470.0,107450.0,1.141554]
[1734446179158,0.046531,107460.0,107450.0,0.481034]
[1734446179461,0.046531,107460.0,107450.0,1.141034]
[1734446179665,0.046531,107460.0,107450.0,0.481034]
[1734446180753,0.046531,107460.0,107450.0,0.120234]
[1734446180952,0.046531,107460.0,107450.0,0.481034]
[1734446181553,0.046531,107460.0,107450.0,0.120234]
[1734446181953,0.53208105,107460.0,107440.0,0.6964]
[1734446182157,0.046544,107430.0,107420.0,0.61348353]
[1734446182362,0.046544,107430.0,107420.0,0.522248]
[1734446182556,0.046544,107430.0,107420.0,0.161448]
[1734446182869,0.046541,107440.0,107430.0,0.046543]
[1734446183159,0.046541,107440.0,107430.0,0.407343]
[1734446183560,0.407335,107450.0,107420.0,0.64699605]
[1734446183764,0.407335,107450.0,107420.0,0.522246]
[1734446184063,0.046548,107420.0,107410.0,0.00010607]
[1734446184669,0.046548,107420.0,107410.0,0.04665807]
[1734446184964,0.046548,107420.0,107410.0,0.53220812]
[1734446185460,0.046548,107420.0,107410.0,0.40745807]
[1734446186456,0.046548,107420.0,107410.0,0.04665807]
[1734446186658,0.046548,107420.0,107410.0,0.00010607]
[1734446186866,0.17129805,107420.0,107410.0,0.00010607]
[1734446187261,0.046548,107420.0,107410.0,0.00010607]
[1734446187665,0.046548,107420.0,107410.0,0.40745807]
[1734446188056,0.046545,107430.0,107420.0,0.046546]
[1734446188257,0.046545,107430.0,107420.0,0.407346]
[1734446188458,0.046541,107440.0,107430.0,0.046542]
[1734446188760,0.046544,107430.0,107420.0,0.4001]
[1734446189378,0.046544,107430.0,107420.0,0.446648]
[1734446189666,0.59744658,107450.0,107410.0,0.40745707]
[1734446189667,0.046548,107420.0,107410.0,0.40745707]
[1734446189863,0.046548,107420.0,107410.0,0.44675707]
[1734446190760,0.046546,107430.0,107420.0,0.046547]
[1734446190964,0.046546,107430.0,107420.0,0.407347]
[1734446191670,0.046548,107420.0,107410.0,0.44675807]
[1734446193066,0.046548,107420.0,107410.0,1.10675807]
[1734446193372,0.4608605,107470.0,107430.0,0.046544]
[1734446193561,0.06482356,107470.0,107460.0,0.407331]
[1734446193966,0.00011579,107470.0,107460.0,0.407331]
[1734446194273,0.04652,107490.0,107480.0,0.046522]
[1734446194476,0.04652,107490.0,107480.0,0.407322]
[1734446195073,0.834361,107530.0,107490.0,0.046513]
[1734446195074,0.3608,107530.0,107490.0,0.046513]
[1734446195275,0.407304,107530.0,107520.0,0.046505]
[1734446195567,0.40741754,107530.0,107520.0,0.046505]
[1734446195770,0.046505,107520.0,107510.0,0.407306]
[1734446195973,0.36091354,107530.0,107520.0,0.046505]
[1734446196270,0.00011354,107530.0,107520.0,0.53205505]
[1734446196462,0.06506595,107560.0,107520.0,0.82715005]
[1734446196662,0.390252,107550.0,107520.0,0.3608]
[1734446196862,0.046509,107510.0,107500.0,0.36087602]
[1734446197077,0.046509,107510.0,107500.0,0.40738802]
[1734446197078,0.17125905,107510.0,107500.0,0.40738802]
[1734446197367,0.00011623,107510.0,107500.0,0.40738802]
[1734446198371,0.04662523,107510.0,107500.0,0.40738802]
[1734446198668,0.04662523,107510.0,107500.0,0.40738902]
[1734446198870,0.17137528,107510.0,107500.0,0.40738902]
[1734446199677,0.04662523,107510.0,107500.0,0.40738902]
[1734446199865,0.00011623,107510.0,107500.0,0.40738902]
[1734446200372,0.04662523,107510.0,107500.0,0.40738902]
[1734446201173,0.04662523,107510.0,107500.0,7.602e-05]
[1734446201478,0.40742523,107510.0,107500.0,7.602e-05]
[1734446201777,0.04662523,107510.0,107500.0,7.602e-05]
[1734446202080,0.00011623,107510.0,107500.0,0.40738902]
[1734446202282,0.04662523,107510.0,107500.0,0.04658902]
[1734446202472,0.04662523,107510.0,107500.0,0.70658902]
[1734446202775,0.04662523,107510.0,107500.0,7.602e-05]
[1734446202978,0.40742523,107510.0,107500.0,7.602e-05]
[1734446203175,0.04662523,107510.0,107500.0,7.602e-05]
[1734446204077,0.40742523,107510.0,107500.0,7.602e-05]
[1734446204977,0.04662523,107510.0,107500.0,7.602e-05]
[1734446205172,0.00011623,107510.0,107500.0,0.40738902]
[1734446205578,0.04662523,107510.0,107500.0,0.40738902]
[1734446207770,0.04662523,107510.0,107500.0,7.602e-05]
[1734446207771,0.26609119,107510.0,107500.0,7.602e-05]
[1734446207971,0.62689119,107510.0,107500.0,7.602e-05]
[1734446208371,0.62689119,107510.0,107480.0,0.00139552]
[1734446208372,0.92689119,107510.0,107480.0,0.00139552]
[1734446208670,0.046529,107470.0,107450.0,0.3608]
[1734446208875,0.26599496,107470.0,107450.0,0.706533]
[1734446209271,0.26599496,107470.0,107450.0,1.067333]
[1734446209470,0.046531,107460.0,107450.0,1.06743781]
[1734446209683,0.046531,107460.0,107450.0,0.00010481]
[1734446209980,0.62691018,107460.0,107450.0,0.00010481]
[1734446211772,0.00011322,107460.0,107450.0,0.40743981]
[1734446211980,0.407323,107480.0,107450.0,0.70743981]
[1734446212181,0.046519,107490.0,107470.0,0.407326]
[1734446212371,0.407315,107500.0,107490.0,0.046518]
[1734446212576,0.046515,107500.0,107490.0,0.046518]
[1734446212773,0.06529792,107510.0,107500.0,0.046513]
[1734446212974,8.967e-05,107510.0,107500.0,0.3608]
[1734446213177,8.967e-05,107510.0,107500.0,0.407313]
[1734446213475,0.04659867,107510.0,107500.0,0.706513]
[1734446213679,8.967e-05,107510.0,107500.0,0.706513]
[1734446213875,8.967e-05,107510.0,107500.0,1.067313]
[1734446214576,8.967e-05,107510.0,107500.0,1.367313]
[1734446214771,0.58026596,107540.0,107520.0,0.046505]
[1734446214772,0.62676396,107540.0,107520.0,0.046505]
[1734446214977,0.046498,107540.0,107530.0,0.0465]
[1734446215172,0.26595796,107550.0,107530.0,0.3608]
[1734446215378,0.046492,107550.0,107540.0,0.407293]
[1734446215580,0.046492,107550.0,107540.0,0.046493]
[1734446215782,6.887e-05,107550.0,107530.0,0.0429]
[1734446215982,6.887e-05,107550.0,107540.0,0.407296]
[1734446216386,6.887e-05,107550.0,107540.0,0.707296]
[1734446216588,6.887e-05,107550.0,107540.0,0.92676196]
[1734446216884,0.046479,107580.0,107570.0,0.046482]
[1734446217082,0.046479,107580.0,107570.0,0.046483]
[1734446217083,0.046481,107580.0,107570.0,0.046483]
[1734446217285,0.046481,107580.0,107570.0,0.407283]
[1734446217487,0.58026596,107590.0,107560.0,1.0208]
[1734446217671,0.046481,107580.0,107570.0,0.04657779]
[1734446217879,0.04657946,107590.0,107580.0,0.046479]
[1734446218381,0.00010446,107590.0,107580.0,0.92674496]
[1734446218778,0.00010446,107590.0,107580.0,0.3608]
[1734446218779,0.046475,107590.0,107580.0,0.3608]
[1734446219082,0.046476,107590.0,107580.0,0.046479]
[1734446219285,0.146471,107600.0,107590.0,0.046475]
[1734446219472,0.1,107600.0,107590.0,0.407275]
[1734446219785,0.05409407,107600.0,107590.0,0.407275]
[1734446219983,0.05409407,107600.0,107590.0,0.046475]
[1734446220183,0.05409407,107600.0,107590.0,0.407275]
[1734446220378,0.046475,107590.0,107580.0,0.407278]
[1734446220583,0.046475,107590.0,107580.0,0.3608]
[1734446220789,0.046479,107580.0,107570.0,0.36089479]
[1734446220982,0.26594496,107580.0,107570.0,9.479e-05]
[1734446221182,0.62674496,107580.0,107570.0,9.479e-05]
[1734446222183,0.62674496,107580.0,107540.0,0.3621947]
[1734446222386,0.046492,107550.0,107540.0,0.0013947]
[1734446222576,0.62675796,107550.0,107540.0,0.0013947]
[1734446223285,0.62683093,107550.0,107540.0,0.0013947]
[1734446224486,0.40736497,107550.0,107540.0,0.0013947]
[1734446225994,0.04656497,107550.0,107540.0,0.0013947]
[1734446226583,0.40736497,107550.0,107540.0,0.0013947]
[1734446226986,0.62683093,107550.0,107540.0,0.0013947]
[1734446227187,0.26603093,107550.0,107540.0,0.0013947]
[1734446227388,0.04656497,107550.0,107540.0,0.0013947]
[1734446227886,7.297e-05,107550.0,107540.0,0.0013947]
[1734446228085,0.046484,107570.0,107560.0,0.046487]
[1734446228790,0.046484,107570.0,107550.0,0.40729]
[1734446229181,0.046488,107560.0,107550.0,0.40729]
[1734446229595,0.046488,107560.0,107540.0,0.3621947]
[1734446229901,0.046492,107550.0,107540.0,0.3608]
[1734446230596,0.046496,107540.0,107530.0,1.06740895]
[1734446231000,0.046496,107540.0,107530.0,1.02090995]
[1734446231493,0.046496,107540.0,107530.0,1.06740995]
[1734446231694,0.046496,107540.0,107530.0,0.66010995]
[1734446231902,0.407296,107540.0,107530.0,0.00010995]
[1734446232099,0.62676196,107540.0,107530.0,0.00010995]
[1734446232394,0.407296,107540.0,107530.0,0.00010995]
[1734446232607,0.3608,107550.0,107540.0,0.046495]
[1734446232608,0.046493,107550.0,107540.0,0.046495]
[1734446232894,0.046496,107540.0,107530.0,0.40740895]
[1734446234994,0.046496,107540.0,107530.0,0.00010995]
[1734446235204,0.407296,107540.0,107530.0,0.00010995]
[1734446237287,6.715e-05,107570.0,107560.0,0.046488]
[1734446237593,6.715e-05,107570.0,107560.0,0.98755396]
[1734446237798,6.715e-05,107570.0,107560.0,0.66]
[1734446237988,0.046488,107560.0,107540.0,0.3608]
[1734446238194,6.715e-05,107570.0,107540.0,0.407295]
[1734446238491,0.046492,107550.0,107530.0,1.02090995]
[1734446238799,0.62676196,107540.0,107530.0,0.00010995]
[1734446239011,0.97020196,107540.0,107510.0,0.3608]
[1734446239300,0.34344,107540.0,107530.0,0.0465]
[1734446239506,0.389936,107540.0,107530.0,0.0465]
[1734446239898,0.436436,107540.0,107520.0,0.407303]
[1734446240092,0.389936,107540.0,107530.0,0.0465]
[1734446240395,0.0465,107530.0,107520.0,0.40739124]
[1734446240898,0.0465,107530.0,107520.0,8.824e-05]
[1734446242496,0.0465,107530.0,107520.0,0.04659324]
[1734446244003,0.0465,107530.0,107520.0,8.824e-05]
[1734446244399,0.92370596,107540.0,107520.0,8.824e-05]
[1734446244593,0.0465,107530.0,107520.0,0.04659224]
[1734446245000,0.0465,107530.0,107520.0,8.824e-05]
[1734446245201,0.4073,107530.0,107520.0,8.824e-05]
[1734446245703,0.0465,107530.0,107520.0,8.824e-05]
[1734446245903,0.0465,107530.0,107520.0,0.40739324]
[1734446246106,0.389939,107540.0,107530.0,0.0465]
[1734446246401,0.0465,107530.0,107520.0,0.40739124]
[1734446246603,0.0465,107530.0,107520.0,0.70659124]
[1734446247102,0.0465,107530.0,107520.0,0.66008824]
[1734446247405,0.0465,107530.0,107520.0,8.824e-05]
[1734446247610,0.4073,107530.0,107520.0,8.824e-05]
[1734446248307,0.9563749,107530.0,107480.0,0.43962298]
[1734446248507,0.046522,107480.0,107470.0,0.44010298]
[1734446248695,0.53185945,107480.0,107470.0,0.82675134]
[1734446248897,0.407322,107480.0,107460.0,0.82675134]
[1734446249108,0.046526,107470.0,107460.0,1.23452656]
[1734446249300,0.04661035,107470.0,107460.0,0.04661444]
[1734446249503,0.04661035,107470.0,107460.0,8.344e-05]
[1734446252700,0.04661035,107470.0,107460.0,0.04661444]
[1734446253200,0.04661035,107470.0,107460.0,0.40741444]
[1734446253405,0.04661035,107470.0,107460.0,0.04661444]
[1734446254497,0.04661035,107470.0,107460.0,0.70661444]
[1734446255810,0.04661035,107470.0,107460.0,1.06741444]
[1734446256017,8.435e-05,107470.0,107460.0,1.06741444]
[1734446256207,8.435e-05,107470.0,107460.0,1.28705514]
[1734446257112,8.435e-05,107470.0,107460.0,1.06741444]
[1734446257613,0.04661035,107470.0,107460.0,8.344e-05]
[1734446258004,0.29644756,107460.0,107450.0,0.04792892]
[1734446258308,0.046539,107440.0,107430.0,0.86536394]
[1734446258710,0.046539,107440.0,107430.0,1.52536394]
[1734446258915,0.6269797,107440.0,107430.0,9.459e-05]
[1734446260319,0.407339,107440.0,107430.0,9.459e-05]
[1734446260716,0.6269797,107440.0,107430.0,9.459e-05]
[1734446261516,0.407339,107440.0,107430.0,9.459e-05]
[1734446261725,0.046539,107440.0,107430.0,9.459e-05]
[1734446262021,0.6269797,107440.0,107430.0,9.459e-05]
[1734446263516,0.9269797,107440.0,107430.0,9.459e-05]
[1734446264437,0.9717797,107440.0,107430.0,9.459e-05]
[1734446264813,0.6717797,107440.0,107430.0,9.459e-05]
[1734446265013,0.6717797,107440.0,107400.0,0.15787572]
[1734446265014,0.9717797,107440.0,107400.0,0.15787572]
[1734446265213,0.6269927,107410.0,107380.0,0.00139657]
[1734446265413,0.6270017,107390.0,107380.0,0.00139657]
[1734446265620,0.04657,107370.0,107360.0,0.3608]
[1734446265912,0.046574,107360.0,107350.0,0.54378696]
[1734446266125,0.407374,107360.0,107350.0,0.04538675]
[1734446266424,0.6270147,107360.0,107350.0,8.675e-05]
[1734446266819,0.407374,107360.0,107350.0,8.675e-05]
[1734446267019,0.6270147,107360.0,107350.0,8.675e-05]
[1734446269717,0.00010574,107370.0,107350.0,0.40746475]
[1734446269923,0.046565,107390.0,107370.0,0.046566]
[1734446270321,0.53219751,107390.0,107370.0,0.046566]
[1734446270517,0.407365,107390.0,107370.0,0.046566]
[1734446271024,0.407365,107390.0,107380.0,0.66]
[1734446271224,0.40747103,107390.0,107380.0,0.66]
[1734446272227,0.36090603,107390.0,107380.0,0.046565]
[1734446272620,0.36090603,107390.0,107380.0,0.706565]
[1734446273331,0.40746703,107390.0,107380.0,0.706565]
[1734446273922,0.40746703,107390.0,107380.0,0.046565]
[1734446274423,0.04666703,107390.0,107380.0,0.706565]
[1734446275024,0.40746703,107390.0,107380.0,0.046565]
[1734446275630,0.40746703,107390.0,107370.0,1.1029]
[1734446275826,0.046565,107380.0,107370.0,1.149467]
[1734446276328,0.00010603,107390.0,107380.0,0.046565]
[1734446276633,0.04666703,107390.0,107380.0,0.046565]
[1734446277330,0.04666703,107390.0,107380.0,0.407365]
[1734446278131,0.04666703,107390.0,107380.0,0.046565]
[1734446279830,0.00010603,107390.0,107380.0,0.046565]
[1734446280028,0.04666703,107390.0,107380.0,0.046565]
[1734446280339,0.04666703,107390.0,107370.0,0.0821]
[1734446280340,0.046565,107380.0,107370.0,0.0821]
[1734446280536,0.046565,107380.0,107360.0,0.4041]
[1734446280537,0.04657,107370.0,107360.0,0.4041]
[1734446280737,0.26656017,107370.0,107360.0,0.4041]
[1734446280936,0.62736017,107370.0,107360.0,0.046574]
[1734446281739,0.046574,107360.0,107350.0,0.09666475]
[1734446281938,0.62736417,107360.0,107350.0,0.05008675]
[1734446286734,0.92736417,107360.0,107350.0,0.05008675]
[1734446287027,0.046583,107340.0,107330.0,0.00139729]
[1734446287232,0.98817317,107340.0,107330.0,0.00139729]
[1734446288145,0.98825306,107340.0,107330.0,0.00139729]
[1734446288442,0.046587,107330.0,107320.0,0.00011982]
[1734446288630,1.01117717,107330.0,107320.0,0.00011982]
[1734446288942,0.046596,107310.0,107300.0,0.32051554]
[1734446289131,0.98818617,107310.0,107300.0,0.32051554]
[1734446289531,0.98818617,107310.0,107300.0,0.1]
[1734446289734,0.98818617,107310.0,107290.0,0.26126452]
[1734446289936,0.62739017,107300.0,107290.0,0.26126452]
[1734446290140,0.62739017,107300.0,107280.0,0.21270088]
[1734446290445,0.4074,107300.0,107290.0,0.046604]
[1734446290649,0.3608,107300.0,107290.0,0.08735298]
[1734446290846,0.62738717,107310.0,107300.0,0.0466]
[1734446291148,0.0466,107300.0,107290.0,0.04074898]
[1734446291354,0.0466,107300.0,107280.0,0.04074898]
[1734446291355,0.046604,107290.0,107280.0,0.04074898]
[1734446291535,0.62739417,107290.0,107280.0,0.04074898]
[1734446291741,0.97143417,107290.0,107280.0,0.04074898]
[1734446292044,0.046609,107280.0,107270.0,0.42745152]
[1734446292241,0.046613,107270.0,107260.0,0.1552378]
[1734446292444,0.62740317,107270.0,107250.0,0.04076551]
[1734446292648,0.407418,107260.0,107250.0,0.04076551]
[1734446292850,0.3608,107260.0,107250.0,0.08738751]
[1734446293146,0.62740417,107270.0,107250.0,0.08738751]
[1734446293546,0.046618,107260.0,107250.0,0.08738751]
[1734446293735,0.62740817,107260.0,107250.0,0.04076551]
[1734446293934,0.046622,107250.0,107240.0,0.00010244]
[1734446294140,0.53262869,107250.0,107240.0,0.04087993]
[1734446295344,0.046631,107230.0,107220.0,0.0407832]
[1734446295542,0.046639,107210.0,107200.0,0.2]
[1734446295846,0.046639,107210.0,107170.0,0.27679885]
[1734446295847,1.36281238,107210.0,107170.0,0.27679885]
[1734446296042,0.89345869,107180.0,107170.0,0.27679885]
[1734446296350,0.89356072,107180.0,107170.0,0.00139964]
[1734446296557,0.89356072,107180.0,107150.0,0.00010073]
[1734446296558,0.046661,107160.0,107150.0,0.00010073]
[1734446296744,0.97201338,107160.0,107150.0,0.00010073]
[1734446297050,1.01867438,107160.0,107150.0,0.01467664]
[1734446297536,1.27201338,107160.0,107120.0,0.407477]
[1734446297737,0.48600669,107130.0,107120.0,0.01457903]
[1734446298051,0.55421629,107140.0,107120.0,0.06125703]
[1734446298240,0.3608,107140.0,107120.0,0.06125703]
[1734446298440,0.3608,107160.0,107130.0,0.3608]
[1734446298654,0.3608,107160.0,107150.0,0.046665]
[1734446299049,0.3608,107160.0,107130.0,0.00010973]
[1734446299050,0.91501629,107160.0,107130.0,0.00010973]
[1734446299243,0.96168629,107140.0,107130.0,0.00010973]
[1734446299444,0.96168629,107140.0,107120.0,0.046678]
[1734446299445,0.046679,107120.0,107100.0,0.14808648]
[1734446299643,0.55421629,107110.0,107100.0,0.14808648]
[1734446299948,0.55421629,107130.0,107120.0,0.046678]
[1734446300137,0.96169029,107130.0,107110.0,0.046683]
[1734446300342,0.55421629,107120.0,107110.0,0.046683]
[1734446300541,0.60089829,107120.0,107100.0,0.14815431]
[1734446300749,0.046687,107100.0,107080.0,0.046695]
[1734446300947,0.046687,107100.0,107080.0,0.706695]
[1734446300948,0.19341629,107090.0,107080.0,0.706695]
[1734446301154,0.60090929,107090.0,107070.0,0.407498]
[1734446301454,0.55421629,107090.0,107080.0,0.046696]
[1734446301642,0.53321125,107090.0,107080.0,0.07003494]
[1734446301843,7.797e-05,107090.0,107080.0,0.04680989]
[1734446302353,0.55429426,107090.0,107080.0,0.00011389]
[1734446302550,0.60098626,107090.0,107080.0,0.00011389]
[1734446303256,0.85429426,107090.0,107060.0,0.046704]
[1734446303451,0.96171829,107070.0,107040.0,0.40891136]
[1734446303652,0.19341629,107050.0,107040.0,0.04811136]
[1734446303957,0.407502,107070.0,107040.0,0.04811136]
[1734446303958,0.55421629,107080.0,107070.0,0.0467]
[1734446304253,0.36227977,107090.0,107050.0,0.36090801]
[1734446304440,0.60091329,107080.0,107060.0,0.046703]
[1734446304647,0.19341629,107080.0,107070.0,0.0467]
[1734446304851,0.55569606,107090.0,107050.0,0.66090801]
[1734446305052,0.00147977,107090.0,107080.0,0.046696]
[1734446305268,0.01825355,107100.0,107090.0,0.046692]
[1734446305443,0.19481765,107120.0,107110.0,0.046683]
[1734446305644,0.19481765,107120.0,107090.0,0.3608]
[1734446305645,0.19481765,107120.0,107100.0,0.407485]
[1734446305847,0.00140136,107120.0,107110.0,0.407483]
[1734446306050,0.24149865,107120.0,107100.0,0.3608]
[1734446306352,0.046692,107090.0,107080.0,0.3608]
[1734446306554,0.24010829,107090.0,107080.0,0.3608]
[1734446306942,0.046696,107080.0,107070.0,0.00140091]
[1734446307143,0.046696,107080.0,107050.0,0.04681601]
[1734446307144,0.046703,107070.0,107050.0,0.04681601]
[1734446307448,0.60092129,107060.0,107050.0,0.00010801]
[1734446307753,0.24012129,107060.0,107050.0,0.00010801]
[1734446307948,0.24011729,107070.0,107050.0,0.04681701]
[1734446308146,0.24011729,107070.0,107050.0,0.40761701]
[1734446308348,0.19341629,107060.0,107050.0,0.00010801]
[1734446308549,0.24012129,107060.0,107050.0,0.00010801]
[1734446308748,0.19341629,107060.0,107050.0,0.00010801]
[1734446308956,0.19341629,107060.0,107050.0,0.04681701]
[1734446309154,0.24011629,107070.0,107050.0,0.430965]
[1734446309355,0.19341629,107070.0,107060.0,0.407505]
[1734446309544,0.00010066,107080.0,107070.0,0.0467]
[1734446309744,0.00010066,107080.0,107070.0,0.42209024]
[1734446310358,0.00010066,107080.0,107070.0,0.7075]
[1734446310547,0.00010066,107080.0,107070.0,0.7517]
[1734446310750,0.00010066,107080.0,107070.0,0.4517]
[1734446310956,0.00010066,107080.0,107070.0,0.7517]
[1734446311147,0.0014018,107090.0,107080.0,0.046696]
[1734446311344,0.0014018,107090.0,107080.0,0.407496]
[1734446311546,0.04808036,107120.0,107080.0,0.752396]
[1734446311744,0.04808036,107120.0,107110.0,0.407483]
[1734446311954,0.04808036,107120.0,107110.0,0.046683]
[1734446312168,0.04818672,107120.0,107110.0,0.046683]
[1734446312652,0.04669,107100.0,107080.0,0.091595]
[1734446312857,0.04669,107100.0,107090.0,0.407492]
[1734446313554,0.24010029,107110.0,107090.0,0.3608]
[1734446313753,0.24010029,107110.0,107090.0,0.40749]
[1734446313959,0.046687,107100.0,107090.0,0.40749]
[1734446314155,0.046687,107100.0,107090.0,0.04669]
[1734446314361,0.24010029,107110.0,107090.0,0.40749]
[1734446314664,0.046687,107100.0,107080.0,0.452395]
[1734446315257,0.046687,107100.0,107080.0,0.091595]
[1734446315463,0.19341629,107090.0,107070.0,0.40640092]
[1734446315651,0.046696,107080.0,107070.0,0.42098821]
[1734446315846,0.046696,107080.0,107070.0,0.40640092]
[1734446316565,0.046692,107090.0,107080.0,0.046696]
[1734446316768,0.046687,107100.0,107080.0,0.407495]
[1734446316969,0.046687,107100.0,107090.0,0.3608]
[1734446317154,0.19341629,107100.0,107090.0,0.3608]
[1734446317356,0.046692,107090.0,107080.0,0.407495]
[1734446317970,0.046692,107090.0,107080.0,0.3608]
[1734446318154,0.046692,107090.0,107080.0,0.407491]
[1734446318560,0.046683,107100.0,107090.0,0.046687]
[1734446318762,0.046678,107110.0,107090.0,0.407487]
[1734446318965,0.24009429,107110.0,107100.0,0.3608]
[1734446319265,0.046683,107100.0,107090.0,0.3608]
[1734446319562,0.046687,107090.0,107080.0,0.3608]
[1734446319769,0.046687,107090.0,107080.0,0.407491]
[1734446320161,0.24010329,107090.0,107080.0,0.3608]
[1734446320564,0.046687,107090.0,107080.0,0.3608]
[1734446320864,0.046683,107100.0,107080.0,1.00164728]
[1734446321064,0.046683,107100.0,107090.0,0.407487]
[1734446321263,0.046683,107100.0,107090.0,0.49353428]
[1734446322056,0.046683,107100.0,107090.0,0.452687]
[1734446322462,0.17219988,107100.0,107090.0,0.452687]
[1734446322769,0.046683,107100.0,107090.0,0.452687]
[1734446323169,0.046683,107100.0,107090.0,0.752687]
[1734446323469,0.046681,107110.0,107090.0,0.49353428]
[1734446323669,0.046681,107110.0,107100.0,0.3608]
[1734446323863,0.046681,107110.0,107100.0,0.40164728]
[1734446324067,0.046681,107110.0,107100.0,0.3608]
[1734446324068,0.17219788,107110.0,107100.0,0.3608]
[1734446324369,0.17219788,107110.0,107100.0,0.40164728]
[1734446324571,0.17219788,107110.0,107100.0,0.04084728]
[1734446324865,0.53299788,107110.0,107100.0,0.04084728]
[1734446325376,0.17219788,107110.0,107100.0,0.40164728]
[1734446325575,0.046681,107110.0,107100.0,0.04084728]
[1734446325872,0.046681,107110.0,107100.0,0.40164728]
[1734446326768,0.768281,107110.0,107090.0,0.046684]
[1734446327069,0.3608,107100.0,107090.0,0.046684]
[1734446327974,0.046692,107080.0,107070.0,0.046694]
[1734446328267,0.407492,107080.0,107070.0,0.046914]
[1734446328869,0.53300888,107080.0,107070.0,0.00022]
[1734446329072,0.046696,107070.0,107060.0,0.046699]
[1734446329477,0.48631688,107070.0,107050.0,0.37916255]
[1734446329667,0.0467,107060.0,107050.0,0.42586355]
[1734446329973,0.407493,107080.0,107070.0,0.046696]
[1734446330173,0.046693,107080.0,107070.0,0.046696]
[1734446330470,0.49025612,107090.0,107080.0,0.046691]
[1734446330671,0.046688,107090.0,107080.0,0.046691]
[1734446330871,0.49025112,107100.0,107090.0,0.046687]
[1734446331066,0.407483,107100.0,107090.0,0.046687]
[1734446331471,0.53299988,107100.0,107090.0,0.046687]
[1734446331667,0.046683,107100.0,107090.0,0.046687]
[1734446331987,0.615764,107110.0,107100.0,0.046683]
[1734446332164,0.046683,107100.0,107090.0,0.046684]
[1734446332364,0.49024712,107110.0,107100.0,0.046683]
[1734446332566,0.407479,107110.0,107100.0,0.046683]
[1734446332774,0.08427584,107120.0,107110.0,0.046678]
[1734446333074,0.5178275,107130.0,107120.0,0.046674]
[1734446333075,0.08276812,107130.0,107120.0,0.046674]
[1734446333276,0.08276812,107140.0,107130.0,0.046669]
[1734446333476,0.19312562,107150.0,107140.0,0.046665]
[1734446333779,0.49022912,107150.0,107140.0,0.046665]
[1734446333975,0.49022512,107160.0,107120.0,0.67129735]
[1734446334165,0.40758185,107150.0,107130.0,0.046667]
[1734446334573,0.04678185,107150.0,107130.0,0.046666]
[1734446334869,0.00011785,107150.0,107140.0,0.046665]
[1734446335068,0.40757885,107150.0,107140.0,0.046665]
[1734446335271,0.046665,107140.0,107130.0,0.046668]
[1734446335469,0.046669,107130.0,107120.0,0.046673]
[1734446335766,0.407466,107140.0,107130.0,0.046668]
[1734446335971,0.00011785,107150.0,107140.0,0.046665]
[1734446336379,0.00011785,107150.0,107140.0,0.92838935]
[1734446337969,0.407452,107170.0,107140.0,0.97505435]
[1734446338278,0.00140034,107180.0,107170.0,0.046652]
[1734446338279,0.36220034,107180.0,107170.0,0.046652]
[1734446338581,0.146641,107200.0,107180.0,0.046648]
[1734446338582,0.1,107200.0,107180.0,0.046648]
[1734446338781,0.1,107200.0,107190.0,0.046643]
[1734446338979,0.50751617,107200.0,107170.0,7.303e-05]
[1734446339178,0.407448,107180.0,107170.0,7.303e-05]
[1734446339373,0.407448,107180.0,107170.0,0.04672503]
[1734446339776,0.407448,107180.0,107170.0,7.303e-05]
[1734446340273,0.407448,107180.0,107170.0,0.04672503]
[1734446340878,0.3608,107180.0,107170.0,0.04672503]
[1734446341384,0.407444,107190.0,107180.0,0.046648]
[1734446341591,0.046648,107180.0,107170.0,7.303e-05]
[1734446341885,0.10007317,107200.0,107170.0,0.66087303]
[1734446342081,0.23842562,107210.0,107200.0,0.046639]
[1734446342082,0.08276812,107210.0,107200.0,0.046639]
[1734446342275,0.046627,107230.0,107210.0,0.046635]
[1734446342676,0.04663,107220.0,107200.0,0.407438]
[1734446342877,0.046634,107220.0,107200.0,0.046638]